fUST/lending_fUST_20250127
["ID","MTS","AMOUNT","RATE_DAILY","PERIOD"]
[350535076,1737949641845,-500.0,0.00019769,2]
[350535077,1737949641866,-1000.0,0.00019777,2]
[350535078,1737949641886,-1000.0,0.00019777,2]
[350535079,1737949641907,-587.0,0.0001978,2]
[350535080,1737949641929,-351.84648064,0.00019797,2]
[350535081,1737949641949,-1000.0,0.00019801,2]
[350535082,1737949641970,-500.0,0.00019863,9]
[350535083,1737949641992,-351.84648064,0.00019969,2]
[350535084,1737949642012,-160.0,0.0002,2]
[350535085,1737949642032,-15545.0,0.0002,2]
[350535086,1737949642052,-1741.81170134,0.0002,30]
[350535087,1737949642076,-1782.3776598,0.0002,30]
[350535088,1737949642095,-1579.3,0.0002,2]
[350535089,1737949642117,-3456.20965776,0.0002,30]
[350535090,1737949642138,-1200.0,0.00020045,2]
[350535091,1737949642160,-153.5547867,0.00020055,2]
[350535092,1737949642181,-154.1761492,0.00020055,2]
[350535093,1737949642201,-306.0,0.00020055,2]
[350535094,1737949642222,-169.5314995,0.00020082,2]
[350535095,1737949642244,-351.84648064,0.00020141,2]
[350535096,1737949642264,-300.0,0.000202,8]
[350535097,1737949642284,-395.0,0.00020237,2]
[350535098,1737949642306,-150.292,0.00020237,2]
[350535099,1737949642328,-351.84648064,0.00020314,2]
[350535100,1737949642349,-169.5314995,0.00020329,2]
[350535101,1737949642374,-351.84648064,0.00020486,2]
[350535102,1737949642395,-500.0,0.00020547,11]
[350535103,1737949642415,-466.244642,0.00020548,2]
[350535104,1737949642435,-3523.57,0.000206,2]
[350535105,1737949642457,-351.84648064,0.00020659,2]
[350535106,1737949642477,-1500.0,0.00020778,2]
[350535107,1737949642498,-160.0,0.000208,3]
[350535108,1737949642519,-7458.15634357,0.000208,3]
[350535109,1737949642539,-351.84648064,0.00020831,2]
[350535110,1737949642560,-3000.0,0.00021,2]
[350535111,1737949642581,-351.84648064,0.00021003,2]
[350535112,1737949642602,-3000.0,0.0002101,2]
[350535113,1737949642623,-3000.0,0.0002102,2]
[350535114,1737949642643,-3000.0,0.0002103,2]
[350535115,1737949642664,-3000.0,0.0002104,2]
[350535116,1737949642684,-3000.0,0.0002105,2]
[350535117,1737949642707,-3000.0,0.0002106,2]
[350535118,1737949642730,-3000.0,0.0002107,2]
[350535119,1737949642756,-3000.0,0.0002108,2]
[350535120,1737949642780,-4260.786585,0.0002109,2]
[350535121,1737949642803,-351.84648064,0.00021176,2]
[350535122,1737949642827,-468.21784529,0.00021188,2]
[350535123,1737949642848,-172.17343753,0.0002123,2]
[350535124,1737949642870,-500.0,0.00021232,13]
[350535125,1737949642893,-351.84648064,0.00021348,2]
[350535126,1737949642916,-503.53012252,0.00021369,2]
[350535127,1737949642937,-195.495,0.0002138,2]
[350535128,1737949642960,-351.84648064,0.00021521,2]
[350535129,1737949642982,-15545.0,0.000216,4]
[350535130,1737949643004,-823.0,0.00021614,2]
[350535131,1737949643025,-164.94637,0.00021661,2]
[350535132,1737949643048,-351.84648064,0.00021693,3]
[350535133,1737949643068,-300.0,0.000217,9]
[350535134,1737949643088,-1000.0,0.000218,10]
[350535135,1737949643109,-800.8,0.000218,30]
[350535136,1737949643131,-351.84648064,0.00021866,3]
[350535137,1737949643156,-152.34,0.000219,31]
[350535138,1737949643180,-152.34,0.000219,31]
[350535139,1737949643202,-152.34,0.000219,31]
[350535140,1737949643229,-152.34,0.000219,31]
[350535141,1737949643253,-152.34,0.000219,31]
[350535142,1737949643276,-152.34,0.000219,31]
[350535143,1737949643300,-152.34,0.000219,31]
[350535144,1737949643324,-152.34,0.000219,31]
[350535145,1737949643348,-152.34,0.000219,31]
[350535146,1737949643370,-152.34,0.000219,31]
[350535147,1737949643393,-152.34,0.000219,31]
[350535148,1737949643416,-152.34,0.000219,31]
[350535149,1737949643439,-152.34,0.000219,31]
[350535150,1737949643459,-150.632301,0.000219,2]
[350535151,1737949643480,-500.0,0.00021917,2]
[350535152,1737949643500,-500.0,0.00021917,15]
[350535153,1737949643520,-500.0,0.00021917,2]
[350535154,1737949643541,-500.0,0.00021917,2]
[350535155,1737949643561,-504.10978071,0.00021917,2]
[350535156,1737949643582,-500.0,0.00021961,2]
[350535157,1737949643707,-3523.57,0.00022,14]
[350535158,1737949643730,-351.84648064,0.00022038,3]
[350535159,1737949643753,-2000.0,0.00022076,2]
[350535160,1737949643775,-151.0,0.000222,8]
[350535161,1737949643796,-351.84648064,0.0002221,3]
[350535162,1737949643817,-530.8785729,0.0002228,2]
[350535163,1737949643837,-106745.28491113,0.000223,7]
[350535164,1737949643858,-160.0,0.000223,7]
[350535165,1737949643878,-7458.15634357,0.000223,7]
[350535166,1737949643900,-351.84648064,0.00022383,3]
[350535167,1737949643920,-172.17343753,0.0002242,2]
[350535168,1737949643940,-32815.00576675,0.000225,3]
[350535169,1737949643960,-6896.62172834,0.000225,3]
[350535170,1737949643980,-5172.67,0.000225,2]
[350535171,1737949644001,-160.0,0.000225,3]
[350535172,1737949644023,-7458.15634357,0.000225,3]
[350535173,1737949644045,-160.0,0.00022503,5]
[350535174,1737949644064,-173.99515373,0.00022505,2]
[350535175,1737949644086,-500.0,0.00022509,7]
[350535176,1737949644106,-500.0,0.00022509,7]
[350535177,1737949644126,-219.92791157,0.00022509,7]
[350535178,1737949644146,-225.77855462,0.00022509,7]
[350535179,1737949644166,-151.58902426,0.00022509,7]
[350535180,1737949644186,-732.0,0.00022509,3]
[350535181,1737949644206,-500.0,0.00022509,7]
[350535182,1737949644229,-500.0,0.00022509,7]
[350535183,1737949644254,-150.14,0.00022509,2]
[350535184,1737949644275,-229.06165955,0.00022509,7]
[350535185,1737949644294,-214.0237266,0.00022518,2]
[350535186,1737949644313,-275.745688,0.00022519,7]
[350535187,1737949644333,-275.745688,0.00022519,7]
[350535188,1737949644355,-151.0,0.00022519,7]
[350535189,1737949644376,-430.36465,0.00022519,7]
[350535190,1737949644396,-1009.847242,0.00022519,7]
[350535191,1737949644417,-1009.847242,0.00022519,7]
[350535192,1737949644439,-430.36465,0.00022519,7]
[350535193,1737949644459,-151.0,0.00022519,7]
[350535194,1737949644480,-151.0,0.00022519,7]
[350535195,1737949644501,-151.0,0.00022519,7]
[350535196,1737949644521,-151.0,0.00022519,7]
[350535197,1737949644542,-151.0,0.00022519,7]
[350535198,1737949644563,-424.500965,0.00022519,7]
[350535199,1737949644583,-151.0,0.00022519,7]
[350535200,1737949644604,-424.500965,0.00022519,7]
[350535201,1737949644624,-267.40397,0.00022519,7]
[350535202,1737949644644,-267.40397,0.00022519,7]
[350535203,1737949644664,-151.0,0.00022519,7]
[350535204,1737949644684,-151.0,0.00022519,7]
[350535205,1737949644703,-151.0,0.00022519,7]
[350535206,1737949644723,-391.31892,0.00022519,7]
[350535207,1737949644748,-210.834422,0.00022519,7]
[350535208,1737949644770,-391.31892,0.00022519,7]
[350535209,1737949644792,-210.834422,0.00022519,7]
[350535210,1737949644814,-77857.01855477,0.00022519,5]
[350535211,1737949644836,-5913.09768416,0.00022519,5]
[350535212,1737949644869,-152.130844,0.0002252,7]
[350535213,1737949644892,-151.0,0.0002252,7]
[350535214,1737949644922,-151.0,0.0002252,7]
[350535215,1737949644950,-151.0,0.0002252,7]
[350535216,1737949644976,-290.682038,0.0002252,7]
[350535217,1737949645005,-151.0,0.0002252,7]
[350535218,1737949645034,-151.0,0.0002252,7]
[350535219,1737949645063,-151.0,0.0002252,7]
[350535220,1737949645093,-151.0,0.0002252,7]
[350535221,1737949645121,-151.0,0.0002252,7]
[350535222,1737949645148,-151.0,0.0002252,7]
[350535223,1737949645176,-151.0,0.0002252,7]
[350535224,1737949645205,-151.0,0.0002252,7]
[350535225,1737949645230,-151.0,0.0002252,7]
[350535226,1737949645254,-151.0,0.0002252,7]
[350535227,1737949645279,-151.0,0.0002252,7]
[350535228,1737949645306,-252.437548,0.0002252,7]
[350535229,1737949645332,-151.0,0.0002252,7]
[350535230,1737949645360,-151.0,0.0002252,7]
[350535231,1737949645387,-151.0,0.0002252,7]
[350535232,1737949645412,-151.0,0.0002252,7]
[350535233,1737949645435,-151.0,0.0002252,7]
[350535234,1737949645460,-151.0,0.0002252,7]
[350535235,1737949645488,-151.0,0.0002252,7]
[350535236,1737949645514,-151.0,0.0002252,7]
[350535237,1737949645539,-151.0,0.0002252,7]
[350535238,1737949645566,-179.142831,0.0002252,7]
[350535239,1737949645591,-275.745688,0.0002252,7]
[350535240,1737949645615,-275.745688,0.0002252,7]
[350535241,1737949645638,-275.745688,0.0002252,7]
[350535242,1737949645663,-275.745688,0.0002252,7]
[350535243,1737949645687,-275.745688,0.0002252,7]
[350535244,1737949645711,-275.745688,0.0002252,7]
[350535245,1737949645738,-275.745688,0.0002252,7]
[350535246,1737949645762,-275.745688,0.0002252,7]
[350535247,1737949645790,-275.745688,0.0002252,7]
[350535248,1737949645815,-275.745688,0.0002252,7]
[350535249,1737949645841,-275.745688,0.0002252,7]
[350535250,1737949645865,-275.745688,0.0002252,7]
[350535251,1737949645890,-275.745688,0.0002252,7]
[350535252,1737949645916,-275.745688,0.0002252,7]
[350535253,1737949645942,-275.745688,0.0002252,7]
[350535254,1737949645967,-275.745688,0.0002252,7]
[350535255,1737949645993,-275.745688,0.0002252,7]
[350535256,1737949646019,-275.745688,0.0002252,7]
[350535257,1737949646045,-151.0,0.0002252,7]
[350535258,1737949646070,-151.0,0.0002252,7]
[350535259,1737949646096,-151.0,0.0002252,7]
[350535260,1737949646123,-151.0,0.0002252,7]
[350535261,1737949646150,-151.0,0.0002252,7]
[350535262,1737949646177,-151.0,0.0002252,7]
[350535263,1737949646200,-151.0,0.0002252,7]
[350535264,1737949646223,-151.0,0.0002252,7]
[350535265,1737949646245,-202.479359,0.0002252,7]
[350535266,1737949646269,-430.36465,0.0002252,7]
[350535267,1737949646292,-1009.847242,0.0002252,7]
[350535268,1737949646316,-1009.847242,0.0002252,7]
[350535269,1737949646339,-430.36465,0.0002252,7]
[350535270,1737949646518,-1009.847242,0.0002252,7]
[350535271,1737949646553,-430.36465,0.0002252,7]
[350535272,1737949646576,-1009.847242,0.0002252,7]
[350535273,1737949646599,-430.36465,0.0002252,7]
[350535274,1737949646622,-1009.847242,0.0002252,7]
[350535275,1737949646644,-430.36465,0.0002252,7]
[350535276,1737949646666,-430.36465,0.0002252,7]
[350535277,1737949646689,-1009.847242,0.0002252,7]
[350535278,1737949646711,-1009.847242,0.0002252,7]
[350535279,1737949646738,-430.36465,0.0002252,7]
[350535280,1737949646761,-1009.847242,0.0002252,7]
[350535281,1737949646785,-430.36465,0.0002252,7]
[350535282,1737949646813,-1009.847242,0.0002252,7]
[350535283,1737949646836,-430.36465,0.0002252,7]
[350535284,1737949646861,-1009.847242,0.0002252,7]
[350535285,1737949646883,-430.36465,0.0002252,7]
[350535286,1737949646907,-1009.847242,0.0002252,7]
[350535287,1737949646930,-430.36465,0.0002252,7]
[350535288,1737949646953,-1009.847242,0.0002252,7]
[350535289,1737949646975,-430.36465,0.0002252,7]
[350535290,1737949646997,-1009.847242,0.0002252,7]
[350535291,1737949647020,-430.36465,0.0002252,7]
[350535292,1737949647044,-1009.847242,0.0002252,7]
[350535293,1737949647069,-430.36465,0.0002252,7]
[350535294,1737949647092,-1009.847242,0.0002252,7]
[350535295,1737949647114,-430.36465,0.0002252,7]
[350535296,1737949647137,-1009.847242,0.0002252,7]
[350535297,1737949647160,-430.36465,0.0002252,7]
[350535298,1737949647183,-1009.847242,0.0002252,7]
[350535299,1737949647205,-1009.8472517,0.0002252,7]
[350535300,1737949647229,-430.36465,0.0002252,7]
[350535301,1737949647252,-430.36465836,0.0002252,7]
[350535302,1737949647279,-151.0,0.0002252,7]
[350535303,1737949647302,-151.0,0.0002252,7]
[350535304,1737949647323,-245.045597,0.0002252,7]
[350535305,1737949647346,-475.888616,0.0002252,7]
[350535306,1737949647367,-475.888616,0.0002252,7]
[350535307,1737949647389,-475.888616,0.0002252,7]
[350535308,1737949647411,-475.888616,0.0002252,7]
[350535309,1737949647433,-475.888616,0.0002252,7]
[350535310,1737949647455,-475.888616,0.0002252,7]
[350535311,1737949647477,-475.888616,0.0002252,7]
[350535312,1737949647500,-475.888616,0.0002252,7]
[350535313,1737949647522,-475.888616,0.0002252,7]
[350535314,1737949647544,-475.888616,0.0002252,7]
[350535315,1737949647567,-475.888616,0.0002252,7]
[350535316,1737949647588,-475.888616,0.0002252,7]
[350535317,1737949647611,-475.888616,0.0002252,7]
[350535318,1737949647634,-475.888616,0.0002252,7]
[350535319,1737949647656,-475.888616,0.0002252,7]
[350535320,1737949647678,-475.888616,0.0002252,7]
[350535321,1737949647701,-151.0,0.0002252,7]
[350535322,1737949647723,-475.888616,0.0002252,7]
[350535323,1737949647750,-151.0,0.0002252,7]
[350535324,1737949647772,-475.888616,0.0002252,7]
[350535325,1737949647795,-151.0,0.0002252,7]
[350535326,1737949647818,-475.888616,0.0002252,7]
[350535327,1737949647841,-151.0,0.0002252,7]
[350535328,1737949647865,-475.888623,0.0002252,7]
[350535329,1737949647886,-151.0,0.0002252,7]
[350535330,1737949647908,-151.0,0.0002252,7]
[350535331,1737949647930,-151.0,0.0002252,7]
[350535332,1737949647952,-151.0,0.0002252,7]
[350535333,1737949647974,-173.816729,0.0002252,7]
[350535334,1737949647997,-151.0,0.0002252,7]
[350535335,1737949648018,-151.0,0.0002252,7]
[350535336,1737949648040,-151.0,0.0002252,7]
[350535337,1737949648061,-151.0,0.0002252,7]
[350535338,1737949648084,-151.0,0.0002252,7]
[350535339,1737949648106,-151.0,0.0002252,7]
[350535340,1737949648127,-151.0,0.0002252,7]
[350535341,1737949648151,-151.0,0.0002252,7]
[350535342,1737949648174,-151.0,0.0002252,7]
[350535343,1737949648195,-151.0,0.0002252,7]
[350535344,1737949648217,-151.0,0.0002252,7]
[350535345,1737949648240,-151.0,0.0002252,7]
[350535346,1737949648262,-151.0,0.0002252,7]
[350535347,1737949648283,-151.0,0.0002252,7]
[350535348,1737949648305,-151.0,0.0002252,7]
[350535349,1737949648327,-244.915059,0.0002252,7]
[350535350,1737949648348,-151.0,0.0002252,7]
[350535351,1737949648370,-151.0,0.0002252,7]
[350535352,1737949648392,-151.0,0.0002252,7]
[350535353,1737949648414,-151.0,0.0002252,7]
[350535354,1737949648435,-151.0,0.0002252,7]
[350535355,1737949648457,-151.0,0.0002252,7]
[350535356,1737949648481,-151.0,0.0002252,7]
[350535357,1737949648504,-151.0,0.0002252,7]
[350535358,1737949648526,-151.0,0.0002252,7]
[350535359,1737949648550,-151.0,0.0002252,7]
[350535360,1737949648575,-284.714094,0.0002252,7]
[350535361,1737949648599,-424.500965,0.0002252,7]
[350535362,1737949648622,-424.500965,0.0002252,7]
[350535363,1737949648645,-424.500965,0.0002252,7]
[350535364,1737949648669,-424.500965,0.0002252,7]
[350535365,1737949648691,-424.500965,0.0002252,7]
[350535366,1737949648713,-424.500965,0.0002252,7]
[350535367,1737949648741,-424.500965,0.0002252,7]
[350535368,1737949648767,-220.613527,0.0002252,7]
[350535369,1737949648792,-424.500965,0.0002252,7]
[350535370,1737949648817,-424.500965,0.0002252,7]
[350535371,1737949648840,-424.500965,0.0002252,7]
[350535372,1737949648864,-424.500965,0.0002252,7]
[350535373,1737949648889,-424.500965,0.0002252,7]
[350535374,1737949648912,-424.500965,0.0002252,7]
[350535375,1737949648935,-424.500965,0.0002252,7]
[350535376,1737949648960,-424.500965,0.0002252,7]
[350535377,1737949648984,-424.500965,0.0002252,7]
[350535378,1737949649008,-424.500965,0.0002252,7]
[350535379,1737949649032,-424.500958,0.0002252,7]
[350535380,1737949649054,-267.40397,0.0002252,7]
[350535381,1737949649076,-267.40397,0.0002252,7]
[350535382,1737949649102,-267.40397,0.0002252,7]
[350535383,1737949649125,-267.40397,0.0002252,7]
[350535384,1737949649148,-267.40397,0.0002252,7]
[350535385,1737949649172,-267.40397,0.0002252,7]
[350535386,1737949649195,-267.40397,0.0002252,7]
[350535387,1737949649218,-267.40397,0.0002252,7]
[350535388,1737949649240,-267.40397,0.0002252,7]
[350535389,1737949649262,-267.40397,0.0002252,7]
[350535390,1737949649283,-267.40397,0.0002252,7]
[350535391,1737949649304,-267.40397,0.0002252,7]
[350535392,1737949649326,-267.40397,0.0002252,7]
[350535393,1737949649348,-267.40397,0.0002252,7]
[350535394,1737949649369,-170.139206,0.0002252,7]
[350535395,1737949649391,-267.40397,0.0002252,7]
[350535396,1737949649413,-267.40397,0.0002252,7]
[350535397,1737949649435,-267.40397,0.0002252,7]
[350535398,1737949649457,-267.403972,0.0002252,7]
[350535399,1737949649480,-217.960102,0.0002252,7]
[350535400,1737949649502,-391.31892,0.0002252,7]
[350535401,1737949649525,-391.31892,0.0002252,7]
[350535402,1737949649547,-391.31892,0.0002252,7]
[350535403,1737949649569,-391.31892,0.0002252,7]
[350535404,1737949649589,-210.834422,0.0002252,7]
[350535405,1737949649612,-391.31892,0.0002252,7]
[350535406,1737949649636,-210.834422,0.0002252,7]
[350535407,1737949649657,-210.834422,0.0002252,7]
[350535408,1737949649679,-391.31892,0.0002252,7]
[350535409,1737949649704,-391.31892,0.0002252,7]
[350535410,1737949649727,-210.834422,0.0002252,7]
[350535411,1737949649857,-210.834422,0.0002252,7]
[350535412,1737949649881,-391.31892,0.0002252,7]
[350535413,1737949649903,-210.834422,0.0002252,7]
[350535414,1737949649926,-391.31892,0.0002252,7]
[350535415,1737949649949,-210.834422,0.0002252,7]
[350535416,1737949649971,-210.834422,0.0002252,7]
[350535417,1737949649991,-391.31892,0.0002252,7]
[350535418,1737949650015,-210.834422,0.0002252,7]
[350535419,1737949650036,-391.31892,0.0002252,7]
[350535420,1737949650057,-210.834422,0.0002252,7]
[350535421,1737949650079,-210.834422,0.0002252,7]
[350535422,1737949650107,-391.31892,0.0002252,7]
[350535423,1737949650130,-210.834422,0.0002252,7]
[350535424,1737949650152,-391.31892,0.0002252,7]
[350535425,1737949650172,-210.834422,0.0002252,7]
[350535426,1737949650194,-391.31892,0.0002252,7]
[350535427,1737949650216,-210.834422,0.0002252,7]
[350535428,1737949650241,-210.834422,0.0002252,7]
[350535429,1737949650262,-391.31892,0.0002252,7]
[350535430,1737949650283,-391.31892,0.0002252,7]
[350535431,1737949650305,-210.834422,0.0002252,7]
[350535432,1737949650327,-391.31892,0.0002252,7]
[350535433,1737949650349,-210.834422,0.0002252,7]
[350535434,1737949650371,-391.318927,0.0002252,7]
[350535435,1737949650392,-210.83443,0.0002252,7]
[350535436,1737949650413,-151.0,0.0002252,7]
[350535437,1737949650435,-158.700261,0.0002252,7]
[350535438,1737949650457,-425.804376,0.0002252,7]
[350535439,1737949650479,-425.804376,0.0002252,7]
[350535440,1737949650500,-425.804376,0.0002252,7]
[350535441,1737949650521,-425.804376,0.0002252,7]
[350535442,1737949650541,-425.804376,0.0002252,7]
[350535443,1737949650562,-425.804376,0.0002252,7]
[350535444,1737949650583,-425.804376,0.0002252,7]
[350535445,1737949650604,-425.804376,0.0002252,7]
[350535446,1737949650626,-425.804376,0.0002252,7]
[350535447,1737949650646,-425.804376,0.0002252,7]
[350535448,1737949650668,-425.804376,0.0002252,7]
[350535449,1737949650689,-425.804376,0.0002252,7]
[350535450,1737949650709,-425.804376,0.0002252,7]
[350535451,1737949650736,-425.804376,0.0002252,7]
[350535452,1737949650758,-425.804376,0.0002252,7]
[350535453,1737949650779,-425.804376,0.0002252,7]
[350535454,1737949650801,-425.804376,0.0002252,7]
[350535455,1737949650822,-425.804376,0.0002252,7]
[350535456,1737949650848,-238.91201,0.0002252,7]
[350535457,1737949650870,-425.804376,0.0002252,7]
[350535458,1737949650893,-238.91201,0.0002252,7]
[350535459,1737949650914,-425.804384,0.0002252,7]
[350535460,1737949650937,-238.91201,0.0002252,7]
[350535461,1737949650959,-238.91201,0.0002252,7]
[350535462,1737949650983,-238.91201,0.0002252,7]
[350535463,1737949651004,-238.91201,0.0002252,7]
[350535464,1737949651026,-238.91201,0.0002252,7]
[350535465,1737949651048,-238.91201,0.0002252,7]
[350535466,1737949651070,-238.91201,0.0002252,7]
[350535467,1737949651091,-238.91201,0.0002252,7]
[350535468,1737949651113,-238.91201,0.0002252,7]
[350535469,1737949651136,-238.91201,0.0002252,7]
[350535470,1737949651158,-238.91201,0.0002252,7]
[350535471,1737949651180,-238.91201,0.0002252,7]
[350535472,1737949651203,-238.91201,0.0002252,7]
[350535473,1737949651229,-238.91201,0.0002252,7]
[350535474,1737949651252,-238.91201,0.0002252,7]
[350535475,1737949651273,-238.91201,0.0002252,7]
[350535476,1737949651295,-151.0,0.0002252,7]
[350535477,1737949651317,-238.91201,0.0002252,7]
[350535478,1737949651339,-151.0,0.0002252,7]
[350535479,1737949651360,-238.912005,0.0002252,7]
[350535480,1737949651381,-151.0,0.0002252,7]
[350535481,1737949651403,-151.0,0.0002252,7]
[350535482,1737949651425,-155.00873533,0.0002252,7]
[350535483,1737949651447,-230.354936,0.0002255,7]
[350535484,1737949651469,-230.354936,0.0002255,7]
[350535485,1737949651493,-227.292971,0.0002255,7]
[350535486,1737949651515,-151.0,0.0002255,7]
[350535487,1737949651537,-227.292971,0.0002255,7]
[350535488,1737949651559,-151.0,0.0002255,7]
[350535489,1737949651581,-151.0,0.0002255,7]
[350535490,1737949651603,-276.831616,0.0002255,7]
[350535491,1737949651626,-276.831616,0.0002255,7]
[350535492,1737949651648,-186.456036,0.0002255,7]
[350535493,1737949651670,-186.456036,0.0002255,7]
[350535494,1737949651692,-191.501878,0.00022551,7]
[350535495,1737949651714,-191.501878,0.00022551,7]
[350535496,1737949651743,-191.501878,0.00022551,7]
[350535497,1737949651773,-191.501878,0.00022551,7]
[350535498,1737949651795,-191.501878,0.00022551,7]
[350535499,1737949651817,-191.501878,0.00022551,7]
[350535500,1737949651840,-191.501878,0.00022551,7]
[350535501,1737949651862,-191.501878,0.00022551,7]
[350535502,1737949651884,-191.501878,0.00022551,7]
[350535503,1737949651906,-191.501878,0.00022551,7]
[350535504,1737949651928,-191.501878,0.00022551,7]
[350535505,1737949651950,-191.501878,0.00022551,7]
[350535506,1737949651976,-191.501878,0.00022551,7]
[350535507,1737949651998,-191.501878,0.00022551,7]
[350535508,1737949652021,-191.501878,0.00022551,7]
[350535509,1737949652044,-191.501878,0.00022551,7]
[350535510,1737949652066,-191.501878,0.00022551,7]
[350535511,1737949652090,-191.501878,0.00022551,7]
[350535512,1737949652112,-191.501878,0.00022551,7]
[350535513,1737949652134,-191.501874,0.00022551,7]
[350535514,1737949652156,-151.0,0.00022551,7]
[350535515,1737949652178,-252.979572,0.00022551,7]
[350535516,1737949652200,-151.0,0.00022551,7]
[350535517,1737949652224,-151.0,0.00022551,7]
[350535518,1737949652247,-151.0,0.00022551,7]
[350535519,1737949652269,-292.090067,0.00022551,7]
[350535520,1737949652292,-230.354936,0.00022551,7]
[350535521,1737949652318,-230.354936,0.00022551,7]
[350535522,1737949652343,-230.354936,0.00022551,7]
[350535523,1737949652369,-230.354936,0.00022551,7]
[350535524,1737949652393,-230.354936,0.00022551,7]
[350535525,1737949652415,-230.354936,0.00022551,7]
[350535526,1737949652437,-230.354936,0.00022551,7]
[350535527,1737949652461,-230.354936,0.00022551,7]
[350535528,1737949652488,-230.354936,0.00022551,7]
[350535529,1737949652512,-230.354936,0.00022551,7]
[350535530,1737949652536,-230.354936,0.00022551,7]
[350535531,1737949652559,-230.354936,0.00022551,7]
[350535532,1737949652581,-230.354936,0.00022551,7]
[350535533,1737949652604,-230.354936,0.00022551,7]
[350535534,1737949652627,-230.354936,0.00022551,7]
[350535535,1737949652651,-230.354936,0.00022551,7]
[350535536,1737949652674,-230.354936,0.00022551,7]
[350535537,1737949652697,-230.354935,0.00022551,7]
[350535538,1737949652724,-227.292971,0.00022551,7]
[350535539,1737949652752,-227.292971,0.00022551,7]
[350535540,1737949652776,-151.0,0.00022551,7]
[350535541,1737949652801,-151.0,0.00022551,7]
[350535542,1737949652827,-227.292971,0.00022551,7]
[350535543,1737949652851,-151.0,0.00022551,7]
[350535544,1737949652875,-227.292971,0.00022551,7]
[350535545,1737949652900,-227.292971,0.00022551,7]
[350535546,1737949652923,-185.500245,0.00022551,7]
[350535547,1737949652946,-227.292971,0.00022551,7]
[350535548,1737949652969,-227.292971,0.00022551,7]
[350535549,1737949652995,-227.292971,0.00022551,7]
[350535550,1737949653017,-227.292971,0.00022551,7]
[350535551,1737949653040,-227.292971,0.00022551,7]
[350535552,1737949653064,-227.292971,0.00022551,7]
[350535553,1737949653087,-227.292971,0.00022551,7]
[350535554,1737949653110,-227.292971,0.00022551,7]
[350535555,1737949653134,-227.292971,0.00022551,7]
[350535556,1737949653155,-227.292971,0.00022551,7]
[350535557,1737949653177,-227.292971,0.00022551,7]
[350535558,1737949653199,-227.292971,0.00022551,7]
[350535559,1737949653224,-227.292966,0.00022551,7]
[350535560,1737949653364,-151.0,0.00022551,7]
[350535561,1737949653391,-151.0,0.00022551,7]
[350535562,1737949653415,-151.0,0.00022551,7]
[350535563,1737949653438,-151.0,0.00022551,7]
[350535564,1737949653463,-151.0,0.00022551,7]
[350535565,1737949653487,-151.0,0.00022551,7]
[350535566,1737949653509,-151.0,0.00022551,7]
[350535567,1737949653533,-151.0,0.00022551,7]
[350535568,1737949653556,-231.934172,0.00022551,7]
[350535569,1737949653583,-151.0,0.00022551,7]
[350535570,1737949653606,-151.0,0.00022551,7]
[350535571,1737949653628,-151.0,0.00022551,7]
[350535572,1737949653650,-151.0,0.00022551,7]
[350535573,1737949653672,-151.0,0.00022551,7]
[350535574,1737949653694,-151.0,0.00022551,7]
[350535575,1737949653717,-151.0,0.00022551,7]